lending/lending_fUSD_20260411
["ID","MTS","AMOUNT","RATE_DAILY","PERIOD"]
[420270163,1775892846800,-1294.00124618,9.341e-05,2]
[420270164,1775892846835,-1294.00124618,9.341e-05,2]
[420270165,1775892846875,-1294.00124618,9.341e-05,2]
[420270166,1775892846916,-982.29597252,9.341e-05,2]
[420270167,1775892848310,255.560931,7.945e-05,2]
[420270168,1775892854159,-200.0,9.3e-05,2]
[420270169,1775892854203,-250.0,9.321e-05,2]
[420270170,1775892854251,-1329.0,9.341e-05,3]
[420270171,1775892854309,-500.0,9.341e-05,2]
[420270172,1775892854397,-311.70527366,9.341e-05,2]
[420270173,1775892854459,-1294.00124618,9.341e-05,2]
[420270174,1775892854505,-1294.00124618,9.341e-05,2]
[420270175,1775892854560,-1294.00124618,9.341e-05,2]
[420270176,1775892854596,-1294.00124618,9.341e-05,2]
[420270177,1775892854638,-1294.00124618,9.341e-05,2]
[420270178,1775892854673,-939.28849544,9.341e-05,2]
[420270179,1775892864427,-162.0,9.341e-05,3]
[420270180,1775892864470,-354.71275074,9.341e-05,2]
[420270181,1775892864512,-1294.00124618,9.341e-05,2]
[420270182,1775892864548,-1294.00124618,9.341e-05,2]
[420270183,1775892864580,-1294.00124618,9.341e-05,2]
[420270184,1775892864615,-1294.00124618,9.341e-05,2]
[420270185,1775892864659,-1294.00124618,9.341e-05,2]
[420270186,1775892864705,-1294.00124618,9.341e-05,2]
[420270187,1775892864772,-1294.00124618,9.341e-05,2]
[420270188,1775892864817,-425.278526,9.341e-05,2]
[420270189,1775892870901,678.786325,9.294e-05,2]
[420270190,1775892871912,-868.72272018,9.341e-05,2]
[420270191,1775892871952,-1294.00124618,9.341e-05,2]
[420270192,1775892872007,-1294.00124618,9.341e-05,2]
[420270193,1775892872055,-1294.00124618,9.341e-05,2]
[420270194,1775892872106,-1294.00124618,9.341e-05,2]
[420270195,1775892872173,-1294.00124618,9.341e-05,2]
[420270196,1775892872229,-1294.00124618,9.341e-05,2]
[420270197,1775892872283,-1294.00124618,9.341e-05,2]
[420270198,1775892872326,-73.26855656,9.341e-05,2]
[420270199,1775892880870,-1220.73268962,9.341e-05,2]
[420270200,1775892880908,-1294.00124618,9.341e-05,2]
[420270201,1775892880938,-1294.00124618,9.341e-05,2]
[420270202,1775892880968,-1294.00124618,9.341e-05,2]
[420270203,1775892881015,-2079.64485994,9.341e-05,2]
[420270204,1775892881050,-2079.64485994,9.341e-05,2]
[420270205,1775892881082,-737.97385196,9.341e-05,2]
[420270206,1775892913668,-284.0,9.341e-05,2]
[420270207,1775892913726,-300.0,9.341e-05,2]
[420270208,1775892913780,-300.0,9.341e-05,2]
[420270209,1775892913815,-1200.0,9.341e-05,2]
[420270210,1775892913857,-300.0,9.341e-05,2]
[420270211,1775892913890,-1262.0,9.341e-05,3]
[420270212,1775892913912,-157.0,9.341e-05,3]
[420270213,1775892913945,-162.0,9.341e-05,3]
[420270214,1775892913971,-1776.77717484,9.342e-05,2]
[420270215,1775892914000,-4258.22282516,9.342e-05,2]
[420270216,1775892922753,-10000.0,9.342e-05,2]
[420270217,1775892923653,564.3468,9.154e-05,2]
[420270223,1775892934001,2214.652688,9.342e-05,30]
[420270224,1775892934441,2214.652688,9.439e-05,30]
[420270225,1775892934965,2214.652688,9.442e-05,30]
[420270226,1775892935650,2214.652688,9.475e-05,30]
[420270227,1775892937142,248.9,8.753e-05,2]
[420270228,1775892944318,9186.7632,9.242e-05,2]
[420270229,1775892955893,5000.01,6e-05,2]
[420270230,1775892955917,5000.01,6e-05,2]
[420270231,1775892955946,5000.01,6e-05,2]
[420270232,1775892955971,5000.01,6e-05,2]
[420270233,1775892956005,4999.96,6e-05,2]
[420270234,1775892968378,0.05,7.945e-05,2]
[420270235,1775892968408,2632.565292,7.945e-05,2]
[420270236,1775892992823,-150.0,9.241e-05,2]
[420270237,1775892992846,-300.0,9.241e-05,2]
[420270238,1775892992883,-283.0,9.242e-05,2]
[420270239,1775892992921,-8267.0,9.242e-05,2]
[420270240,1775893005909,211.15,8.951e-05,2]
[420270241,1775893007793,-609.0,9.242e-05,2]
[420270242,1775893094143,1000.0,0.000161,120]
[420270243,1775893135503,10000.01,8.787e-05,2]
[420270244,1775893135534,4788.86,8.787e-05,2]
[420270245,1775893135562,5000.01,8.787e-05,2]
[420270246,1775893135585,5000.01,8.787e-05,2]
[420270247,1775893135614,5000.01,8.787e-05,2]
[420270248,1775893135653,5000.01,8.787e-05,2]
[420270249,1775893135678,3473.91,8.787e-05,2]
[420270250,1775893148539,1402.0,8.787e-05,3]
[420270251,1775893154919,124.1,8.787e-05,3]
[420270252,1775893154953,40.9,8.787e-05,3]
[420270253,1775893155279,-150.0,9.24e-05,2]
[420270254,1775893155321,-300.0,9.24e-05,2]
[420270255,1775893155368,-283.0,9.241e-05,2]
[420270256,1775893155400,-668.08993756,9.241e-05,2]
[420270257,1775893155433,-193.0,9.241e-05,2]
[420270258,1775893155475,-500.0,9.241e-05,2]
[420270259,1775893155511,-201.128049,9.241e-05,2]
[420270260,1775893155554,-500.0,9.241e-05,2]
[420270261,1775893155598,-500.0,9.241e-05,2]
[420270262,1775893155664,-222.60000675,9.241e-05,2]
[420270263,1775893155749,-500.0,9.241e-05,2]
[420270264,1775893155864,-526.58126254,9.241e-05,2]
[420270265,1775893155953,-646.68917399,9.241e-05,2]
[420270266,1775893155990,-500.0,9.241e-05,2]
[420270267,1775893156064,-500.0,9.241e-05,2]
[420270268,1775893156111,-500.0,9.241e-05,2]
[420270269,1775893156167,-500.0,9.241e-05,2]
[420270270,1775893156227,-500.0,9.241e-05,2]
[420270271,1775893156269,-500.0,9.241e-05,2]
[420270272,1775893156326,-500.0,9.241e-05,2]
[420270273,1775893156401,-500.0,9.241e-05,2]
[420270274,1775893156448,-500.0,9.241e-05,2]
[420270275,1775893156513,-500.0,9.241e-05,2]
[420270276,1775893156554,-500.0,9.241e-05,2]
[420270277,1775893156602,-500.0,9.241e-05,2]
[420270278,1775893156640,-500.0,9.241e-05,2]
[420270279,1775893156677,-500.0,9.241e-05,2]
[420270280,1775893156737,-500.0,9.241e-05,2]
[420270281,1775893156801,-500.0,9.241e-05,2]
[420270282,1775893156838,-500.0,9.241e-05,2]
[420270283,1775893156877,-500.0,9.241e-05,2]
[420270284,1775893156926,-500.0,9.241e-05,2]
[420270285,1775893156970,-500.0,9.241e-05,2]
[420270286,1775893157034,-500.0,9.241e-05,2]
[420270287,1775893157103,-252.24193741,9.241e-05,2]
[420270288,1775893157156,-500.0,9.241e-05,2]
[420270289,1775893157216,-266.75367124,9.241e-05,2]
[420270290,1775893157274,-500.0,9.241e-05,2]
[420270291,1775893157314,-500.0,9.241e-05,2]
[420270292,1775893157357,-500.0,9.241e-05,2]
[420270293,1775893157395,-500.0,9.241e-05,2]
[420270294,1775893157434,-423.80859651,9.241e-05,2]
[420270295,1775893157469,-500.0,9.241e-05,2]
[420270296,1775893157493,-366.107365,9.241e-05,2]
[420270297,1775893165019,-500.0,9.241e-05,2]
[420270298,1775893165046,-94.07306975,9.241e-05,2]
[420270299,1775893165082,-637.34882605,9.241e-05,2]
[420270300,1775893165119,-500.0,9.241e-05,2]
[420270301,1775893165144,-175.60807264,9.241e-05,2]
[420270302,1775893165175,-1679.19985069,9.241e-05,2]
[420270303,1775893165213,-1679.19985069,9.241e-05,2]
[420270304,1775893165250,-1679.19985069,9.241e-05,2]
[420270305,1775893165285,-1679.19985069,9.241e-05,2]
[420270306,1775893165319,-1679.19985069,9.241e-05,2]
[420270307,1775893165361,-1679.19985069,9.241e-05,2]
[420270308,1775893165399,-500.0,9.241e-05,2]
[420270309,1775893165443,-1679.19985069,9.241e-05,2]
[420270310,1775893165498,-500.0,9.241e-05,2]
[420270311,1775893165536,-1679.19985069,9.241e-05,2]
[420270312,1775893165574,-1679.19985069,9.241e-05,2]
[420270313,1775893165619,-1679.19985069,9.241e-05,2]
[420270314,1775893165658,-300.97152466,9.241e-05,2]
[420270315,1775893175517,-500.0,9.24e-05,2]
[420270316,1775893175550,-437.10716485,9.24e-05,2]
[420270317,1775893175585,-1378.22832603,9.241e-05,2]
[420270318,1775893175621,-1679.19985069,9.241e-05,2]
[420270319,1775893175650,-1679.19985069,9.241e-05,2]
[420270320,1775893175688,-1679.19985069,9.241e-05,2]
[420270321,1775893175725,-1679.19985069,9.241e-05,2]
[420270322,1775893175758,-1679.19985069,9.241e-05,2]
[420270323,1775893175797,-1679.19985069,9.241e-05,2]
[420270324,1775893175838,-1679.19985069,9.241e-05,2]
[420270325,1775893175875,-1679.19985069,9.241e-05,2]
[420270326,1775893175909,-1679.19985069,9.241e-05,2]
[420270327,1775893175945,-1679.19985069,9.241e-05,2]
[420270328,1775893175983,-892.66600222,9.241e-05,2]
[420270329,1775893183041,-786.53384847,9.241e-05,2]
[420270330,1775893183091,-1679.19985069,9.241e-05,2]
[420270331,1775893183138,-1679.19985069,9.241e-05,2]
[420270332,1775893183180,-1679.19985069,9.241e-05,2]
[420270333,1775893183214,-1679.19985069,9.241e-05,2]
[420270334,1775893183253,-1679.19985069,9.241e-05,2]
[420270335,1775893183295,-1679.19985069,9.241e-05,2]
[420270336,1775893183335,-1679.19985069,9.241e-05,2]
[420270337,1775893183379,-1679.19985069,9.241e-05,2]
[420270338,1775893183417,-1679.19985069,9.241e-05,2]
[420270339,1775893183455,-1679.19985069,9.241e-05,2]
[420270340,1775893183492,-1679.19985069,9.241e-05,2]
[420270341,1775893183530,-742.26779394,9.241e-05,2]
[420270342,1775893194018,-283.0,9.24e-05,2]
[420270343,1775893194060,-500.0,9.24e-05,2]
[420270344,1775893194096,-500.0,9.24e-05,2]
[420270345,1775893194125,-936.93205675,9.241e-05,2]
[420270346,1775893194164,-1679.19985069,9.241e-05,2]
[420270347,1775893194200,-1655.2112814,9.241e-05,2]
[420270348,1775893194235,-1655.2112814,9.241e-05,2]
[420270349,1775893194267,-1655.2112814,9.241e-05,2]
[420270350,1775893194297,-1655.2112814,9.241e-05,2]
[420270351,1775893194328,-1655.2112814,9.241e-05,2]
[420270352,1775893194359,-1655.2112814,9.241e-05,2]
[420270353,1775893194390,-1655.2112814,9.241e-05,2]
[420270354,1775893194425,-1655.2112814,9.241e-05,2]
[420270355,1775893194461,-1655.2112814,9.241e-05,2]
[420270356,1775893194504,-1203.96655996,9.241e-05,2]
[420270357,1775893205656,-5128.15,9.195e-05,2]
[420270358,1775893205693,-300.0,9.24e-05,2]
[420270359,1775893205730,-1200.0,9.24e-05,2]
[420270360,1775893205754,-300.0,9.24e-05,2]
[420270361,1775893205780,-300.0,9.24e-05,2]
[420270362,1775893205809,-451.24472144,9.241e-05,2]
[420270363,1775893205838,-1655.2112814,9.241e-05,2]
[420270364,1775893205872,-1655.2112814,9.241e-05,2]
[420270365,1775893205902,-1655.2112814,9.241e-05,2]
[420270366,1775893205931,-1655.2112814,9.241e-05,2]
[420270367,1775893205960,-1655.2112814,9.241e-05,2]
[420270368,1775893205990,-1655.2112814,9.241e-05,2]
[420270369,1775893206018,-1655.2112814,9.241e-05,2]
[420270370,1775893206049,-734.12630876,9.241e-05,2]
[420270371,1775893234663,268.04394317,9.241e-05,30]
[420270372,1775893235297,402.06591476,9.242e-05,30]
[420270377,1775893259280,-157.0,9.241e-05,3]
[420270378,1775893259321,-1332.0,9.241e-05,3]
[420270379,1775893259359,-165.0,9.241e-05,3]
[420270380,1775893259396,-283.0,9.241e-05,2]
[420270381,1775893259435,-921.08497264,9.241e-05,2]
[420270382,1775893259472,-1655.2112814,9.241e-05,2]
[420270383,1775893259501,-1655.2112814,9.241e-05,2]
[420270384,1775893259535,-1596.09659278,9.241e-05,2]
[420270385,1775893259564,-1178.39587178,9.241e-05,2]
[420270386,1775893338221,-283.0,9.24e-05,2]
[420270387,1775893338244,-300.0,9.24e-05,2]
[420270388,1775893338267,-150.0,9.24e-05,2]
[420270389,1775893338288,-1851.00704809,9.241e-05,2]
[420270390,1775893338311,-166.0,9.241e-05,3]
[420270391,1775893338332,-1304.0,9.241e-05,3]
[420270392,1775893338361,-417.700721,9.241e-05,2]
[420270393,1775893338389,-1596.09659278,9.241e-05,2]
[420270394,1775893338416,-1596.09659278,9.241e-05,2]
[420270395,1775893338447,-1596.09659278,9.241e-05,2]
[420270396,1775893338476,-1596.09659278,9.241e-05,2]
[420270397,1775893338510,-1596.09659278,9.241e-05,2]
[420270398,1775893338536,-1596.09659278,9.241e-05,2]
[420270399,1775893338574,-1596.09659278,9.241e-05,2]
[420270400,1775893338614,-1596.09659278,9.241e-05,2]
[420270401,1775893338651,-1596.09659278,9.241e-05,2]
[420270402,1775893338684,-1163.42289589,9.241e-05,2]
[420270403,1775893349692,-432.67369689,9.241e-05,2]
[420270404,1775893349727,-1596.09659278,9.241e-05,2]
[420270405,1775893349758,-1596.09659277,9.241e-05,2]
[420270406,1775893349786,-500.0,9.241e-05,2]
[420270407,1775893349815,-500.0,9.241e-05,2]
[420270408,1775893349845,-159.37848386,9.241e-05,2]
[420270409,1775893349873,-611.53964417,9.241e-05,2]
[420270410,1775893349908,-611.53964417,9.241e-05,2]
[420270411,1775893349950,-611.53964417,9.241e-05,2]
[420270412,1775893349985,-611.53964417,9.241e-05,2]
[420270413,1775893350024,-611.53964417,9.241e-05,2]
[420270414,1775893350053,-611.53964417,9.241e-05,2]
[420270415,1775893350105,-611.53964417,9.241e-05,2]
[420270416,1775893350143,-611.53964417,9.241e-05,2]
[420270417,1775893350171,-611.53964417,9.241e-05,2]
[420270418,1775893350211,-611.53964417,9.241e-05,2]
[420270419,1775893350258,-611.53964417,9.241e-05,2]
[420270420,1775893350289,-611.53964417,9.241e-05,2]
[420270421,1775893350322,-611.53964417,9.241e-05,2]
[420270422,1775893350360,-611.53964417,9.241e-05,2]
[420270423,1775893350398,-611.53964417,9.241e-05,2]
[420270424,1775893350451,-611.53964417,9.241e-05,2]
[420270425,1775893350508,-611.53964417,9.241e-05,2]
[420270426,1775893350552,-611.53964417,9.241e-05,2]
[420270427,1775893350585,-611.53964417,9.241e-05,2]
[420270428,1775893350626,-611.53964417,9.241e-05,2]
[420270429,1775893350660,-611.53964417,9.241e-05,2]
[420270430,1775893350692,-611.53964417,9.241e-05,2]
[420270431,1775893350721,-611.53964417,9.241e-05,2]
[420270432,1775893350755,-611.53964417,9.241e-05,2]
[420270433,1775893350788,-538.80317362,9.241e-05,2]
[420270434,1775893356979,-72.73647055,9.241e-05,2]
[420270435,1775893357022,-611.53964417,9.241e-05,2]
[420270436,1775893357077,-611.53964417,9.241e-05,2]
[420270437,1775893357113,-611.53964417,9.241e-05,2]
[420270438,1775893357165,-611.53964417,9.241e-05,2]
[420270439,1775893357236,-611.53964417,9.241e-05,2]
[420270440,1775893357331,-611.53964417,9.241e-05,2]
[420270441,1775893357423,-611.53964417,9.241e-05,2]
[420270442,1775893357479,-611.53964417,9.241e-05,2]
[420270443,1775893357569,-611.53964417,9.241e-05,2]
[420270444,1775893357619,-611.53964417,9.241e-05,2]
[420270445,1775893357673,-1851.00704808,9.242e-05,2]
[420270446,1775893357704,-155.80840127,9.242e-05,2]
[420270447,1775893357733,-150.0,9.242e-05,2]
[420270448,1775893357759,-150.0,9.242e-05,2]
[420270449,1775893357789,-150.0,9.242e-05,3]
[420270450,1775893357824,-1851.00704808,9.242e-05,2]
[420270451,1775893357858,-183.16,9.242e-05,2]
[420270452,1775893357888,-9320.88459032,9.242e-05,2]
[420270453,1775893366381,-500.0,9.241e-05,2]
[420270454,1775893366451,-500.0,9.241e-05,2]
[420270455,1775893366499,-500.0,9.241e-05,2]
[420270456,1775893366563,-500.0,9.241e-05,2]
[420270457,1775893366597,-500.0,9.241e-05,2]
[420270458,1775893366634,-500.0,9.241e-05,2]
[420270459,1775893366681,-500.0,9.241e-05,2]
[420270460,1775893366723,-500.0,9.241e-05,2]
[420270461,1775893366757,-500.0,9.241e-05,2]
[420270462,1775893366792,-500.0,9.241e-05,2]
[420270463,1775893366823,-500.0,9.241e-05,2]
[420270464,1775893366857,-500.0,9.241e-05,2]
[420270465,1775893366898,-500.0,9.241e-05,2]
[420270466,1775893366946,-500.0,9.241e-05,2]
[420270467,1775893366978,-500.0,9.241e-05,2]
[420270468,1775893367015,-500.0,9.241e-05,2]
[420270469,1775893367054,-500.0,9.241e-05,2]
[420270470,1775893367094,-500.0,9.241e-05,2]
[420270471,1775893367128,-500.0,9.241e-05,2]
[420270472,1775893367161,-10500.0,9.242e-05,2]
[420270473,1775893414586,-2500.0,9.142e-05,2]
[420270474,1775893414624,-5000.0,9.192e-05,2]
[420270475,1775893414669,-3499.47511746,9.239e-05,2]
[420270476,1775893414750,-500.0,9.241e-05,2]
[420270477,1775893414822,-500.0,9.241e-05,2]
[420270478,1775893414870,-500.0,9.241e-05,2]
[420270479,1775893414914,-500.0,9.241e-05,2]
[420270480,1775893414945,-500.0,9.241e-05,2]
[420270481,1775893414980,-500.0,9.241e-05,2]
[420270482,1775893415018,-500.0,9.241e-05,2]
[420270483,1775893415060,-500.0,9.241e-05,2]
[420270484,1775893415100,-500.0,9.241e-05,2]
[420270485,1775893415132,-500.0,9.241e-05,2]
[420270486,1775893415197,-500.0,9.241e-05,2]
[420270487,1775893415243,-500.0,9.241e-05,2]
[420270488,1775893415287,-500.0,9.241e-05,2]
[420270489,1775893415320,-500.0,9.241e-05,2]
[420270490,1775893415355,-500.0,9.241e-05,2]
[420270491,1775893415387,-500.0,9.241e-05,2]
[420270492,1775893415425,-500.0,9.241e-05,2]
[420270493,1775893415458,-500.0,9.241e-05,2]
[420270494,1775893415486,-0.52488254,9.241e-05,2]
[420270495,1775893430688,-283.0,9.241e-05,2]
[420270496,1775893430734,-499.47511746,9.241e-05,2]
[420270497,1775893430779,-500.0,9.241e-05,2]
[420270498,1775893430824,-248.117724,9.241e-05,2]
[420270499,1775893430855,-500.0,9.241e-05,2]
[420270500,1775893430890,-16.40715854,9.241e-05,2]
[420270503,1775893463469,153.0,5.259e-05,2]
[420270504,1775893463853,152.0,5.259e-05,2]
[420270505,1775893464015,152.0,5.259e-05,2]
[420270506,1775893470278,-300.0,9.241e-05,2]
[420270507,1775893470315,-1239.0,9.241e-05,3]
[420270508,1775893470346,-260.74732731,9.241e-05,2]
[420270509,1775893470388,-81.25267269,9.241e-05,2]
[420270510,1775893527495,2500.0,9.142e-05,2]
[420270511,1775893535987,-300.0,9.24e-05,2]
[420270512,1775893536023,-1200.0,9.24e-05,2]
[420270513,1775893536055,-300.0,9.24e-05,2]
[420270514,1775893536089,-150.0,9.24e-05,2]
[420270515,1775893550246,-1177.0,9.241e-05,3]
[420270516,1775893550284,-157.0,9.241e-05,3]
[420270517,1775893550327,-166.0,9.241e-05,3]
[420270518,1775893550370,-283.0,9.241e-05,2]
[420270519,1775893550417,-450.34051986,9.241e-05,2]
[420270520,1775893550485,-500.0,9.241e-05,2]
[420270521,1775893550553,-500.0,9.241e-05,2]
[420270522,1775893550622,-158.52828037,9.241e-05,2]
[420270523,1775893550679,-500.0,9.241e-05,2]
[420270524,1775893550723,-195.05699266,9.241e-05,2]
[420270525,1775893550773,-428.03522177,9.241e-05,2]
[420270526,1775893550819,-360.99519539,9.241e-05,2]
[420270527,1775893551130,-248.0975799,9.241e-05,2]
[420270528,1775893551186,-500.0,9.241e-05,2]
[420270529,1775893551233,-351.97525488,9.241e-05,2]
[420270530,1775893551274,-500.0,9.241e-05,2]
[420270531,1775893551323,-500.0,9.241e-05,2]
[420270532,1775893551374,-500.0,9.241e-05,2]
[420270533,1775893551427,-500.0,9.241e-05,2]
[420270534,1775893551476,-500.0,9.241e-05,2]
[420270535,1775893552148,-500.0,9.241e-05,2]
[420270536,1775893552206,-153.0,9.242e-05,3]
[420270537,1775893553862,-7562.46632075,9.242e-05,2]
[420270538,1775893553876,-10000.01,9.242e-05,2]
[420270539,1775893553890,-10000.01,9.242e-05,2]
[420270540,1775893553929,-10000.01,9.242e-05,2]
[420270541,1775893553972,-10000.01,9.242e-05,2]
[420270542,1775893554442,-10000.01,9.242e-05,2]
[420270543,1775893554501,-10000.01,9.242e-05,2]
[420270544,1775893554520,-10000.01,9.242e-05,2]
[420270545,1775893554543,-10000.01,9.242e-05,2]
[420270546,1775893554566,-10000.01,9.242e-05,2]
[420270547,1775893554596,-10000.01,9.242e-05,2]
[420270548,1775893581903,-300.0,9.241e-05,2]
[420270549,1775893581947,-1060.60961253,9.241e-05,2]
[420270550,1775893582061,-2721.21922506,9.241e-05,2]
[420270551,1775893582162,-4557.57154988,9.241e-05,2]
[420270552,1775893583571,151.0,9.239e-05,2]
[420270553,1775893595468,-1118.0,9.242e-05,3]
[420270554,1775893597074,6973.65446272,9.242e-05,2]
[420270555,1775893604946,674.59707704,9.099e-05,2]
[420270556,1775893609738,115.75846024,9.242e-05,2]
[420270557,1775893609763,167.24153976,9.242e-05,2]
[420270558,1775893616699,-151.56230085,9.242e-05,2]
[420270559,1775893621216,300.0,9.241e-05,2]
[420270560,1775893642680,2300.0,9e-05,3]
[420270561,1775893655897,1000.0,9.031e-05,2]
[420270562,1775893669774,283.0,9.242e-05,2]
[420270563,1775893681506,300.0,9.241e-05,2]
[420270564,1775893681890,300.0,9.241e-05,2]
[420270565,1775893682816,150.0,9.241e-05,2]
[420270566,1775893685657,195.7012808,9.241e-05,2]
[420270567,1775893685868,500.0,9.241e-05,2]
[420270568,1775893686000,500.0,9.241e-05,2]
[420270569,1775893686050,500.0,9.241e-05,2]
[420270570,1775893686082,500.0,9.241e-05,2]
[420270571,1775893686138,379.01031606,9.241e-05,2]
[420270572,1775893686173,500.0,9.241e-05,2]
[420270573,1775893686233,500.0,9.241e-05,2]
[420270574,1775893687353,1062.0,9.242e-05,3]
[420270575,1775893687593,165.80777008,9.241e-05,2]
[420270576,1775893690123,1951.8343,9.142e-05,2]
[420270577,1775893699839,500.0,9.241e-05,2]
[420270578,1775893699909,500.0,9.241e-05,2]
[420270579,1775893699970,500.0,9.241e-05,2]
[420270580,1775893700015,500.0,9.241e-05,2]
[420270581,1775893700072,500.0,9.241e-05,2]
[420270582,1775893700131,500.0,9.241e-05,2]
[420270583,1775893700179,500.0,9.241e-05,2]
[420270584,1775893700228,500.0,9.241e-05,2]
[420270585,1775893700277,500.0,9.241e-05,2]
[420270586,1775893700347,500.0,9.241e-05,2]
[420270587,1775893700404,500.0,9.241e-05,2]
[420270588,1775893700475,500.0,9.241e-05,2]
[420270589,1775893700725,500.0,9.241e-05,2]
[420270590,1775893700814,320.36792992,9.241e-05,2]
[420270591,1775893700850,179.63207008,9.241e-05,2]
[420270592,1775893700894,500.0,9.241e-05,2]
[420270593,1775893700958,500.0,9.241e-05,2]
[420270594,1775893701012,500.0,9.241e-05,2]
[420270595,1775893701055,500.0,9.241e-05,2]
[420270596,1775893701103,500.0,9.241e-05,2]
[420270597,1775893701141,153.0,9.142e-05,3]
[420270598,1775893701188,500.0,9.241e-05,2]
[420270599,1775893701243,500.0,9.241e-05,2]
[420270600,1775893701298,500.0,9.241e-05,2]
[420270601,1775893701372,500.0,9.241e-05,2]
[420270602,1775893701453,500.0,9.241e-05,2]
[420270603,1775893701560,500.0,9.241e-05,2]
[420270604,1775893715861,1000.0,9.091e-05,2]
[420270605,1775893715894,150.0,9.134e-05,2]
[420270606,1775893715937,1000.0,9.024e-05,2]
[420270607,1775893715994,1000.0,9.231e-05,2]
[420270608,1775893716071,150.0,9.12e-05,2]
[420270609,1775893717901,500.0,9.241e-05,2]
[420270610,1775893717974,367.37792992,9.241e-05,2]
[420270611,1775893718007,132.62207008,9.241e-05,2]
[420270612,1775893718076,500.0,9.241e-05,2]
[420270613,1775893718127,500.0,9.241e-05,2]
[420270614,1775893718214,500.0,9.241e-05,2]
[420270615,1775893718313,500.0,9.241e-05,2]
[420270616,1775893718391,500.0,9.241e-05,2]
[420270617,1775893718452,500.0,9.241e-05,2]
[420270618,1775893718536,500.0,9.241e-05,2]
[420270619,1775893720075,500.0,9.241e-05,2]
[420270620,1775893720359,500.0,9.241e-05,2]
[420270621,1775893720419,500.0,9.241e-05,2]
[420270622,1775893720463,500.0,9.241e-05,2]
[420270623,1775893720515,500.0,9.241e-05,2]
[420270624,1775893720577,500.0,9.241e-05,2]
[420270625,1775893720634,500.0,9.241e-05,2]
[420270626,1775893720740,500.0,9.241e-05,2]
[420270627,1775893720811,500.0,9.241e-05,2]
[420270628,1775893720881,500.0,9.241e-05,2]
[420270629,1775893720948,500.0,9.241e-05,2]
[420270630,1775893721053,500.0,9.241e-05,2]
[420270631,1775893721114,367.38792992,9.241e-05,2]
[420270632,1775893732602,-800.0,9.035e-05,2]
[420270633,1775893732641,-279.0,9.035e-05,2]
[420270634,1775893746150,1109.0,9.035e-05,3]
[420270635,1775893746660,-1000.0,9.074e-05,2]
[420270636,1775893751666,-1131.55207127,9.134e-05,2]
[420270637,1775893751704,-918.11099254,9.166e-05,2]
[420270638,1775893754524,167.0,9.035e-05,3]
[420270639,1775893757315,2000.0,8.666e-05,2]
[420270640,1775893806367,157.0,9.074e-05,3]
[420270641,1775893809471,1053.0,9.074e-05,3]
[420270645,1775893832232,-325.40292296,9.138e-05,2]
[420270646,1775893832242,-729.90889269,9.142e-05,2]
[420270647,1775893832342,-7232.676419,9.142e-05,2]
[420270648,1775893832353,-673.97872682,9.142e-05,2]
[420270649,1775893832389,-303.72702952,9.142e-05,2]
[420270650,1775893832406,-1248.86929294,9.142e-05,2]
[420270651,1775893832425,-393.653476,9.142e-05,2]
[420270652,1775893832445,-3058.63601826,9.142e-05,2]
[420270653,1775893832463,-895421.88419422,9.142e-05,2]
[420270654,1775893832486,-182290.82905294,9.142e-05,2]
[420270655,1775893832498,-204004.59082377,9.142e-05,2]
[420270657,1775893832532,-299166.37390154,9.142e-05,2]
[420270659,1775893832547,-1254.41808677,9.142e-05,2]
[420270663,1775893832618,-2287.51677326,9.142e-05,2]
[420270665,1775893832629,-471.84604647,9.142e-05,2]
[420270667,1775893832672,-250.0,9.142e-05,2]
[420270671,1775893832716,-1363.9028499,9.142e-05,2]
[420270674,1775893832734,-3778.7015311,9.142e-05,2]
[420270676,1775893832745,-818.42572312,9.142e-05,2]
[420270678,1775893832761,-464.72178409,9.142e-05,2]
[420270690,1775893838494,-618.71026814,9.141e-05,2]
[420270691,1775893838507,-500.0,9.141e-05,2]
[420270692,1775893838517,-500.0,9.141e-05,2]
[420270693,1775893838528,-246.38267842,9.141e-05,2]
[420270694,1775893838539,-500.0,9.141e-05,2]
[420270695,1775893838551,-500.0,9.141e-05,2]
[420270696,1775893838561,-264.59333455,9.141e-05,2]
[420270697,1775893838573,-500.0,9.141e-05,2]
[420270698,1775893838586,-449.82814481,9.141e-05,2]
[420270699,1775893838596,-500.0,9.141e-05,2]
[420270700,1775893838610,-500.0,9.141e-05,2]
[420270701,1775893838623,-117594.18327869,9.142e-05,2]